[Event "Niedersachsen-ch A 2024"]
[Site "Verden Aller"]
[Date "2024.01.06"]
[Round "5.5"]
[White "Loecken, Siegfried"]
[Black "Schulz, Jens"]
[Result "1/2-1/2"]
[ECO "A04"]
[WhiteElo "2014"]
[BlackElo "2152"]
[Annotator "RC"]
[PlyCount "54"]
[EventDate "2024.01.01"]
[EventType "swiss"]
[EventCountry "GER"]
[SourceTitle "playchess.com"]
[Source "ChessBase"]
[SourceQuality "1"]
[TimeControl "40/5400+30:1800+30"]

1. e4 {[%emt 0:00:02]} c5 {[%emt 0:00:16]} 2. d3 {[%emt 0:00:11]} Nc6 {[%emt 0:02:19]} 3. g3 {[%emt 0:00:11]} g6 {[%emt 0:02:19]} 4. Bg2 {[%emt 0:00:15]} Bg7 {[%emt 0:00:01]} 5. Nf3 {[%emt 0:00:11]} d6 {[%emt 0:04:52]} 6. O-O {[%emt 0:00:10]} e5 {[%emt 0:01:49]} 7. Nbd2 {[%emt 0:01:14]} Nge7 {[%emt 0:00:45]} 8. c3 {[%emt 0:02:25]} O-O {[%emt 0:01:41]} 9. Rb1 {[%emt 0:01:05]} a5 {[%emt 0:01:43]} 10. a3 {[%emt 0:00:35]} b5 {[%emt 0:06:14]} 11. Re1 {[%emt 0:04:03]} h6 {[%emt 0:06:53]} 12. b4 {[%emt 0:05:50]} axb4 {[%emt 0:02:05]} 13. axb4 {[%emt 0:00:03]} cxb4 {[%emt 0:00:08]} 14. cxb4 {[%emt 0:00:09]} Ra4 {[%emt 0:00:10]} 15. Bf1 {[%emt 0:06:32]} Bd7 {[%emt 0:22:37]} 16. d4 {[%emt 0:03:58]} Nxd4 {[%emt 0:00:16]} 17. Nxd4 {[%emt 0:00:19]} exd4 {[%emt 0:00:06]} 18. Nb3 {[%emt 0:00:52]} Qb6 {[%emt 0:03:16]} 19. Na5 {[%emt 0:13:17]} Nc6 {[%emt 0:02:20]} 20. Nxc6 {[%emt 0:00:58]} Bxc6 {[%emt 0:00:08]} 21. Bf4 {[%emt 0:01:29]} Bd7 {[%emt 0:02:00]} 22. h4 {[%emt 0:03:54]} h5 {[%emt 0:00:44]} 23. e5 {[%emt 0:02:40]} dxe5 {[%emt 0:06:16]} 24. Bxe5 {[%emt 0:00:14]} Bxe5 {[%emt 0:00:03]} 25. Rxe5 {[%emt 0:00:11]} Qd6 {[%emt 0:00:07]} 26. Re4 {[%emt 0:22:34]} d3 {[%emt 0:00:05]} 27. Qxd3 {[%emt 0:01:07]} Qxd3 {[%emt 0:00:03]} 1/2-1/2

[Event "Niedersachsen-ch A 2024"]
[Site "Verden Aller"]
[Date "2024.01.06"]
[Round "5.6"]
[White "Soellig, Martin"]
[Black "Lau, Udo"]
[Result "1/2-1/2"]
[ECO "B24"]
[WhiteElo "1892"]
[BlackElo "2071"]
[Annotator "NA RC"]
[PlyCount "101"]
[EventDate "2024.01.01"]
[EventType "swiss"]
[EventCountry "GER"]
[SourceTitle "playchess.com"]
[Source "ChessBase"]
[SourceQuality "1"]
[TimeControl "40/5400+30:1800+30"]

1. e4 {[%emt 1:31:00]} c5 {[%emt 0:00:42]} 2. Nc3 {[%emt 0:00:00]} e6 {[%emt 0:00:39]} 3. g3 {[%emt 0:00:00]} Nc6 {[%emt 0:00:59]} 4. Bg2 {[%emt 0:00:00]} Nf6 {[%emt 0:00:47]} 5. Nge2 {[%emt 0:00:00]} Be7 {[%emt 0:01:30]} 6. O-O {[%emt 0:00:00]} O-O {[%emt 0:01:18]} 7. d3 {[%emt 0:00:00]} d5 {[%emt 0:01:10]} 8. exd5 {[%emt 0:00:00]} exd5 {[%emt 0:01:01]} 9. Bg5 {[%emt 0:00:00]} d4 {[%emt 0:08:26]} 10. Bxf6 {[%emt 0:00:00]} Bxf6 {[%emt 0:00:41]} 11. Ne4 {[%emt 0:00:00]} Be7 {[%emt 0:00:17]} 12. h3 {[%emt 0:00:00]} f5 {[%emt 0:01:55]} 13. Nd2 {[%emt 0:00:00]} Be6 {[%emt 0:00:29]} 14. Kh2 {[%emt 0:00:00]} Bf7 {[%emt 0:08:26]} 15. a4 {[%emt 0:00:00]} Qd7 {[%emt 0:03:50]} 16. Nc4 {[%emt 0:00:00]} Bf6 {[%emt 0:02:37]} 17. Qd2 {[%emt 0:00:00]} Rae8 {[%emt 0:04:38]} 18. Rfe1 {[%emt 0:00:00]} Ne5 {[%emt 0:00:36]} 19. Nxe5 {[%emt 0:00:00]} Rxe5 {[%emt 0:01:29]} 20. b3 {[%emt 0:00:00]} Rfe8 {[%emt 0:01:23]} 21. Ng1 {[%emt 0:00:00]} b6 {[%emt 0:06:41]} 22. Nf3 {[%emt 0:00:00]} Rxe1 {[%emt 0:01:10]} 23. Rxe1 {[%emt 0:00:00]} h6 {[%emt 0:00:14]} 24. Rxe8+ {[%emt 0:00:00]} Qxe8 {[%emt 0:00:26]} 25. Qe1 {[%emt 0:00:00]} Qb8 {[%emt 0:00:12]} 26. Nd2 {[%emt 0:00:00]} a6 {[%emt 0:00:15]} 27. Qe2 {[%emt 0:00:00]} b5 {[%emt 0:03:06]} 28. axb5 {[%emt 0:00:00]} axb5 {[%emt 0:00:42]} 29. Qf3 {[%emt 0:00:00]} Qe5 {[%emt 0:01:17]} 30. Qd1 {[%emt 0:00:00]} Kh7 {[%emt 0:01:39]} 31. Bc6 {[%emt 0:00:00]} Qb8 {[%emt 0:02:37]} 32. Qf3 {[%emt 0:00:00]} Be6 {[%emt 0:01:42]} 33. Bd5 {[%emt 0:00:00]} Bc8 {[%emt 0:02:02]} 34. Qe2 {[%emt 0:00:00]} Qe5 {[%emt 0:03:56]} 35. Qxe5 {[%emt 0:00:00]} Bxe5 {[%emt 0:00:09]} 36. f4 {[%emt 0:00:00]} Bc7 {[%emt 0:00:41]} 37. Bc6 {[%emt 0:00:00]} Ba6 {[%emt 0:00:44]} 38. Nf3 {[%emt 0:00:00]} Kg6 {[%emt 0:00:28]} 39. Nh4+ {[%emt 0:00:00]} Kf6 {[%emt 0:00:30]} 40. Nf3 {[%emt 0:00:00]} g5 {[%emt 0:03:00]} 41. fxg5+ {[%emt 0:22:00]} hxg5 {[%emt 0:30:13]} 42. Kg2 {[%emt 0:00:27]} Ba5 {[%emt 0:01:41]} 43. g4 {[%emt 0:01:20]} Bc3 {[%emt 0:01:59]} 44. Bd7 {[%emt 0:01:12]} fxg4 {[%emt 0:01:05]} 45. hxg4 {[%emt 0:00:07]} c4 {[%emt 0:00:34]} 46. bxc4 {[%emt 0:00:50]} bxc4 {[%emt 0:00:54]} 47. Bf5 {[%emt 0:01:31]} cxd3 {[%emt 0:02:03]} 48. cxd3 {[%emt 0:00:29]} Bb5 {[%emt 0:00:58]} 49. Kf2 {[%emt 0:00:38]} Ba4 {[%emt 0:00:37]} 50. Ke2 {[%emt 0:00:07]} Bc2 {[%emt 0:02:00]} 51. Bd7 {[%emt 0:00:38]} 1/2-1/2

[Event "Niedersachsen-ch A 2024"]
[Site "Verden Aller"]
[Date "2024.01.06"]
[Round "5.7"]
[White "Kiesel, Lucas"]
[Black "Nielsen, Lars Aaes"]
[Result "1-0"]
[ECO "D16"]
[WhiteElo "1987"]
[BlackElo "2202"]
[Annotator "RC"]
[PlyCount "53"]
[EventDate "2024.01.01"]
[EventType "swiss"]
[EventCountry "GER"]
[SourceTitle "playchess.com"]
[Source "ChessBase"]
[SourceQuality "1"]
[TimeControl "40/5400+30:1800+30"]

1. d4 {[%emt 0:00:02]} Nf6 {[%emt 0:00:16]} 2. c4 {[%emt 0:00:03]} c6 {[%emt 0:00:25]} 3. Nf3 {[%emt 0:00:34]} d5 {[%emt 0:00:11]} 4. Nc3 {[%emt 0:00:06]} dxc4 {[%emt 0:00:19]} 5. a4 {[%emt 0:00:19]} Nd5 {[%emt 0:00:12]} 6. e4 {[%emt 0:03:43]} Nxc3 {[%emt 0:00:07]} 7. bxc3 {[%emt 0:00:05]} b5 {[%emt 0:00:09]} 8. Be2 {[%emt 0:01:07]} e6 {[%emt 0:02:50]} 9. O-O {[%emt 0:00:18]} Be7 {[%emt 0:01:22]} 10. e5 {[%emt 0:01:05]} O-O {[%emt 0:02:07]} 11. Nd2 {[%emt 0:00:49]} Bb7 {[%emt 0:00:37]} 12. f4 {[%emt 0:09:08]} f5 {[%emt 0:00:10]} 13. exf6 gxf6 {[%emt 0:00:33]} 14. f5 {[%emt 0:11:56]} e5 {[%emt 0:07:58]} 15. Nf3 {[%emt 0:01:45]} Nd7 {[%emt 0:02:51]} 16. Nh4 {[%emt 0:04:45]} Kh8 {[%emt 0:03:52]} 17. Bh5 {[%emt 0:04:59]} exd4 {[%emt 0:02:34]} 18. Ng6+ {[%emt 0:03:37]} hxg6 {[%emt 0:11:01]} 19. Bxg6 {[%emt 0:00:24]} Kg7 {[%emt 0:02:11]} 20. Bh6+ {[%emt 0:00:04]} Kg8 {[%emt 0:00:34]} 21. Qg4 {[%emt 0:00:40]} Kh8 {[%emt 0:04:04]} 22. Bg7+ {[%emt 0:01:27]} Kxg7 {[%emt 0:02:36]} 23. Be8+ {[%emt 0:00:04]} Kh8 {[%emt 0:02:18]} 24. Qh5+ {[%emt 0:00:59]} Kg8 {[%emt 0:00:46]} 25. Qg6+ {[%emt 0:00:02]} Kh8 {[%emt 0:00:08]} 26. Rf4 {[%emt 0:00:11]} Qxe8 {[%emt 0:00:45]} 27. Rh4# {[%emt 0:55:48]} 1-0

[Event "Niedersachsen-ch A 2024"]
[Site "Verden Aller"]
[Date "2024.01.06"]
[Round "5.8"]
[White "Ahlbrecht, Malte"]
[Black "Trunz, Michelle"]
[Result "1-0"]
[ECO "B22"]
[WhiteElo "1727"]
[BlackElo "2023"]
[Annotator "NA RC"]
[PlyCount "69"]
[EventDate "2024.01.01"]
[EventType "swiss"]
[EventCountry "GER"]
[SourceTitle "playchess.com"]
[Source "ChessBase"]
[SourceQuality "1"]
[TimeControl "40/5400+30:1800+30"]

1. e4 {[%emt 0:00:26]} c5 {[%emt 0:00:09]} 2. c3 {[%emt 0:00:51]} e6 {[%emt 0:01:15]} 3. d4 {[%emt 0:01:25]} d5 {[%emt 0:03:09]} 4. exd5 {[%emt 0:00:23]} Qxd5 {[%emt 0:01:02]} 5. Nf3 {[%emt 0:00:18]} Nf6 {[%emt 0:02:46]} 6. Na3 {[%emt 0:02:58]} Be7 {[%emt 0:04:43]} 7. Bd3 {[%emt 0:02:35]} O-O {[%emt 0:02:01]} 8. O-O {[%emt 0:00:18]} Qd8 {[%emt 0:03:05]} 9. Nc4 {[%emt 0:01:57]} Nc6 {[%emt 0:04:12]} 10. Re1 {[%emt 0:00:53]} cxd4 {[%emt 0:09:24]} 11. cxd4 {[%emt 0:02:41]} Nb4 {[%emt 0:08:16]} 12. Bb1 {[%emt 0:00:11]} b5 {[%emt 0:01:32]} 13. Nce5 {[%emt 0:05:21]} Bb7 {[%emt 0:00:58]} 14. Bg5 {[%emt 0:01:05]} Rc8 {[%emt 0:02:57]} 15. a3 {[%emt 0:01:42]} Nbd5 {[%emt 0:00:30]} 16. Bd3 {[%emt 0:01:46]} a6 {[%emt 0:01:29]} 17. Qe2 {[%emt 0:04:03]} h6 {[%emt 0:02:32]} 18. Bd2 {[%emt 0:01:39]} Qb6 {[%emt 0:03:16]} 19. a4 {[%emt 0:29:23]} Nb4 {[%emt 0:06:09]} 20. Bb1 {[%emt 0:16:05]} Rfd8 {[%emt 0:13:43]} 21. a5 {[%emt 0:14:39]} Bxf3 {[%emt 0:00:44]} 22. gxf3 {[%emt 0:04:42]} Qb7 {[%emt 0:05:19]} 23. h4 {[%emt 0:06:00]} Rxd4 {[%emt 0:03:01]} 24. Bc3 {[%emt 0:00:30]} Rxh4 {[%emt 0:01:03]} 25. Nxf7 {[%emt 0:00:23]} Kxf7 {[%emt 0:00:43]} 26. Qxe6+ {[%emt 0:00:01]} Kf8 {[%emt 0:05:20]} 27. Bg6 {[%emt 0:00:11]} Bc5 {[%emt 0:00:55]} 28. Bxf6 {[%emt 0:00:44]} Rh1+ {[%emt 0:05:40]} 29. Kg2 {[%emt 0:01:18]} Rh2+ {[%emt 0:02:46]} 30. Kxh2 {[%emt 0:00:11]} gxf6 {[%emt 0:00:32]} 31. Qxf6+ {[%emt 0:00:12]} Kg8 {[%emt 0:00:04]} 32. Qe6+ {[%emt 0:01:03]} Kf8 {[%emt 0:02:50]} 33. Qf6+ {[%emt 0:00:16]} Kg8 {[%emt 0:00:06]} 34. Rg1 {[%emt 0:00:25]} Qc7+ {[%emt 0:00:48]} 35. f4 {[%emt 0:00:29]} 1-0

[Event "Niedersachsen-ch A 2024"]
[Site "Verden Aller"]
[Date "2024.01.06"]
[Round "5.9"]
[White "Witthaus, Joerg"]
[Black "Moeller, Tom"]
[Result "1-0"]
[ECO "B40"]
[WhiteElo "2029"]
[BlackElo "1677"]
[Annotator "NA RC"]
[PlyCount "54"]
[EventDate "2024.01.01"]
[EventType "swiss"]
[EventCountry "GER"]
[SourceTitle "playchess.com"]
[Source "ChessBase"]
[SourceQuality "1"]
[TimeControl "40/5400+30:1800+30"]

1. e4 {[%emt 0:00:02]} c5 {[%emt 0:00:04]} 2. Nf3 {[%emt 0:00:09]} e6 {[%emt 0:00:04]} 3. c3 {[%emt 1:31:49]} d5 {[%emt 0:01:30]} 4. exd5 {[%emt 0:00:00]} exd5 {[%emt 1:30:52]} 5. Bb5+ {[%emt 0:00:00]} Bd7 {[%emt 0:00:00]} 6. Bxd7+ {[%emt 0:00:00]} Nxd7 {[%emt 0:00:00]} 7. O-O {[%emt 0:02:00]} Bd6 {[%emt 0:00:00]} 8. d4 {[%emt 0:00:30]} Ne7 {[%emt 0:02:00]} 9. Re1 {[%emt 0:00:00]} O-O {[%emt 0:00:00]} 10. Nbd2 {[%emt 0:01:00]} Nc6 {[%emt 0:01:00]} 11. dxc5 {[%emt 0:00:00]} Nxc5 {[%emt 0:00:30]} 12. Nf1 {[%emt 0:01:00]} Qd7 {[%emt 0:00:30]} 13. Ng3 {[%emt 0:00:30]} Bc7 {[%emt 0:00:00]} 14. Be3 {[%emt 0:00:30]} Ne6 {[%emt 0:00:00]} 15. Qd3 {[%emt 0:00:00]} Rad8 {[%emt 0:01:30]} 16. Rad1 {[%emt 0:01:00]} Bf4 {[%emt 0:00:30]} 17. Qf5 {[%emt 0:00:00]} Bxe3 {[%emt 0:00:00]} 18. Rxe3 {[%emt 0:01:00]} Ne7 {[%emt 0:00:00]} 19. Qc2 {[%emt 0:00:30]} Rfe8 {[%emt 0:01:30]} 20. Red3 {[%emt 0:00:30]} Nf4 {[%emt 0:00:00]} 21. R3d2 {[%emt 0:00:00]} Neg6 {[%emt 0:01:00]} 22. Qf5 {[%emt 0:01:00]} Qa4 {[%emt 0:00:00]} 23. b3 {[%emt 0:00:00]} Qc6 {[%emt 0:01:00]} 24. h4 {[%emt 0:00:00]} d4 {[%emt 0:00:30]} 25. h5 {[%emt 0:00:00]} Re5 {[%emt 0:00:00]} 26. Qg4 {[%emt 0:02:00]} f5 {[%emt 0:00:00]} 27. Nxf5 {[%emt 0:00:00]} Rf8 {[%emt 0:00:00]} 1-0

[Event "Niedersachsen-ch A 2024"]
[Site "Verden Aller"]
[Date "2024.01.06"]
[Round "5.10"]
[White "Sickmann, Lisa"]
[Black "Weigand, Anton"]
[Result "1-0"]
[ECO "B45"]
[WhiteElo "1961"]
[BlackElo "2013"]
[Annotator "NA RC"]
[PlyCount "59"]
[EventDate "2024.01.01"]
[EventType "swiss"]
[EventCountry "GER"]
[SourceTitle "playchess.com"]
[Source "ChessBase"]
[SourceQuality "1"]
[TimeControl "40/5400+30:1800+30"]

1. e4 {[%emt 0:00:45]} c5 {[%emt 0:00:25]} 2. Nf3 {[%emt 1:30:45]} e6 {[%emt 1:31:05]} 3. d4 {[%emt 0:00:00]} cxd4 {[%emt 0:00:00]} 4. Nxd4 Nf6 {[%emt 0:00:00]} 5. Nc3 {[%emt 0:00:00]} Nc6 {[%emt 0:00:00]} 6. Ndb5 {[%emt 0:00:00]} Bc5 {[%emt 0:00:00]} 7. Nd6+ Ke7 {[%emt 0:02:30]} 8. Bf4 {[%emt 0:00:00]} e5 {[%emt 0:00:00]} 9. Nf5+ Kf8 {[%emt 0:00:00]} 10. Bg5 d6 {[%emt 0:01:30]} 11. Ne3 {[%emt 0:04:30]} Be6 {[%emt 0:00:00]} 12. Qd2 Bb4 {[%emt 0:00:00]} 13. Bxf6 Qxf6 {[%emt 0:00:00]} 14. Bc4 Nd4 {[%emt 0:02:00]} 15. a3 {[%emt 0:02:00]} Ba5 {[%emt 0:00:30]} 16. b4 {[%emt 0:00:30]} Bd8 {[%emt 0:00:30]} 17. Ncd5 {[%emt 0:00:30]} Qg6 {[%emt 0:00:30]} 18. Qd3 {[%emt 0:00:30]} f5 {[%emt 0:00:00]} 19. exf5 {[%emt 0:00:00]} Nxf5 {[%emt 0:01:00]} 20. O-O-O {[%emt 0:00:00]} Rc8 {[%emt 0:00:00]} 21. Rhf1 {[%emt 0:00:00]} Nd4 {[%emt 0:00:00]} 22. f4 {[%emt 0:00:00]} Qxd3 {[%emt 0:00:00]} 23. Bxd3 {[%emt 0:02:30]} Kg8 {[%emt 0:00:00]} 24. fxe5 {[%emt 0:00:00]} dxe5 {[%emt 0:00:00]} 25. Bc4 {[%emt 0:01:00]} Rxc4 {[%emt 0:00:00]} 26. Nxc4 {[%emt 0:00:00]} Bxd5 {[%emt 0:00:00]} 27. Nxe5 {[%emt 0:01:00]} Bxg2 {[%emt 0:00:00]} 28. Rf2 {[%emt 0:00:00]} Bg5+ {[%emt 0:00:00]} 29. Kb2 {[%emt 0:00:00]} Bf6 {[%emt 0:00:00]} 30. Nd7 {[%emt 0:00:00]} 1-0

[Event "Niedersachsen-ch A 2024"]
[Site "Verden Aller"]
[Date "2024.01.06"]
[Round "5.11"]
[White "Boerma, Daniel"]
[Black "Stein, Luis"]
[Result "1-0"]
[ECO "B13"]
[WhiteElo "1905"]
[BlackElo "1762"]
[Annotator "NA RC"]
[PlyCount "61"]
[EventDate "2024.01.01"]
[EventType "swiss"]
[EventCountry "GER"]
[SourceTitle "playchess.com"]
[Source "ChessBase"]
[SourceQuality "1"]
[TimeControl "40/5400+30:1800+30"]

1. e4 {[%emt 0:00:02]} c6 {[%emt 0:00:09]} 2. Nf3 {[%emt 0:01:11]} d5 {[%emt 0:00:10]} 3. exd5 {[%emt 0:01:08]} cxd5 {[%emt 0:00:06]} 4. d4 {[%emt 0:00:09]} Nf6 {[%emt 0:00:05]} 5. Bd3 {[%emt 0:00:19]} Bg4 {[%emt 0:00:50]} 6. Nbd2 {[%emt 0:00:52]} e6 {[%emt 0:00:47]} 7. c3 {[%emt 0:00:38]} Bd6 {[%emt 0:01:31]} 8. Qc2 {[%emt 0:00:48]} Nc6 {[%emt 0:01:57]} 9. O-O {[%emt 0:00:16]} Rc8 {[%emt 0:00:30]} 10. Qb1 {[%emt 0:00:18]} O-O {[%emt 0:02:31]} 11. b3 {[%emt 0:01:48]} e5 {[%emt 0:05:25]} 12. dxe5 {[%emt 0:00:20]} Nxe5 {[%emt 0:00:13]} 13. Bb2 {[%emt 0:01:29]} Bxf3 {[%emt 0:07:52]} 14. Nxf3 {[%emt 0:00:21]} Nxf3+ {[%emt 0:01:01]} 15. gxf3 {[%emt 0:00:06]} Bb8 {[%emt 0:01:04]} 16. Kg2 {[%emt 0:03:10]} Ne4 {[%emt 0:20:48]} 17. fxe4 {[%emt 0:01:40]} Qg5+ {[%emt 0:00:09]} 18. Kf3 {[%emt 0:00:15]} Qf4+ {[%emt 0:01:26]} 19. Ke2 {[%emt 0:00:11]} dxe4 {[%emt 0:00:41]} 20. Bxe4 {[%emt 0:06:45]} Rfe8 {[%emt 0:00:51]} 21. f3 {[%emt 0:00:09]} f5 {[%emt 0:00:30]} 22. Qc1 {[%emt 0:03:00]} Qxh2+ {[%emt 0:01:49]} 23. Rf2 {[%emt 0:00:09]} Qh5 {[%emt 0:01:04]} 24. Kd3 {[%emt 0:01:02]} fxe4+ {[%emt 0:02:23]} 25. fxe4 {[%emt 0:00:32]} Rcd8+ {[%emt 0:01:28]} 26. Kc2 {[%emt 0:00:11]} Rxe4 {[%emt 0:00:33]} 27. b4 {[%emt 0:02:53]} Qg6 {[%emt 0:09:43]} 28. Kb3 {[%emt 0:00:24]} a5 {[%emt 0:04:50]} 29. Qf1 {[%emt 0:02:23]} axb4 {[%emt 0:01:20]} 30. Rd1 {[%emt 0:02:19]} Rxd1 {[%emt 0:05:37]} 31. Rf8# {[%emt 1:11:12]} 1-0

[Event "Niedersachsen-ch A 2024"]
[Site "Verden Aller"]
[Date "2024.01.06"]
[Round "5.12"]
[White "Drygala, Lars"]
[Black "Ay, Furkan"]
[Result "1-0"]
[ECO "D02"]
[WhiteElo "1869"]
[BlackElo "1544"]
[Annotator "NA RC"]
[PlyCount "95"]
[EventDate "2024.01.01"]
[EventType "swiss"]
[EventCountry "GER"]
[SourceTitle "playchess.com"]
[Source "ChessBase"]
[SourceQuality "1"]
[TimeControl "40/5400+30:1800+30"]

1. d4 {[%emt 0:00:06]} Nf6 {[%emt 0:00:49]} 2. Nf3 {[%emt 0:00:21]} d5 {[%emt 0:00:17]} 3. Bf4 {[%emt 0:00:11]} c5 {[%emt 0:00:35]} 4. e3 {[%emt 0:00:21]} Nc6 {[%emt 0:00:15]} 5. Be2 {[%emt 0:00:46]} Bf5 {[%emt 0:00:26]} 6. dxc5 {[%emt 0:00:17]} e6 {[%emt 0:01:00]} 7. Nd4 {[%emt 0:00:25]} Bg6 {[%emt 0:01:39]} 8. Bb5 {[%emt 0:00:23]} Rc8 {[%emt 0:03:22]} 9. c3 {[%emt 0:00:31]} Nh5 {[%emt 0:07:14]} 10. b4 {[%emt 0:09:44]} Nxf4 {[%emt 0:04:13]} 11. exf4 {[%emt 0:00:08]} Qc7 {[%emt 0:01:19]} 12. Qf3 {[%emt 0:11:37]} Be7 {[%emt 0:05:07]} 13. f5 {[%emt 0:08:00]} Qe5+ {[%emt 0:03:25]} 14. Kd1 {[%emt 0:00:25]} Bxf5 {[%emt 0:02:31]} 15. Nxf5 {[%emt 0:04:28]} Qxf5 {[%emt 0:00:37]} 16. Qxf5 {[%emt 0:00:26]} exf5 {[%emt 0:00:08]} 17. Re1 {[%emt 0:00:51]} Kd7 {[%emt 0:02:22]} 18. Re5 {[%emt 0:01:18]} Bf6 {[%emt 0:11:44]} 19. Rxd5+ {[%emt 0:00:46]} Kc7 {[%emt 0:00:23]} 20. Bxc6 {[%emt 0:04:14]} Kxc6 {[%emt 0:02:15]} 21. Rd6+ {[%emt 0:00:58]} Kc7 {[%emt 0:03:34]} 22. Na3 {[%emt 0:00:16]} a6 {[%emt 0:01:14]} 23. Kc2 {[%emt 0:01:06]} Rcd8 {[%emt 0:03:05]} 24. Nc4 {[%emt 0:01:25]} Rhe8 {[%emt 0:00:54]} 25. Rad1 {[%emt 0:00:35]} Re2+ {[%emt 0:02:56]} 26. R1d2 {[%emt 0:03:50]} Rxd2+ {[%emt 0:02:01]} 27. Kxd2 {[%emt 0:00:06]} Bg5+ {[%emt 0:02:27]} 28. Kd3 {[%emt 0:01:04]} Re8 {[%emt 0:00:17]} 29. Nb6 {[%emt 0:05:09]} Rd8 {[%emt 0:07:00]} 30. Nd5+ {[%emt 0:01:53]} Kc8 {[%emt 0:00:21]} 31. Rxd8+ {[%emt 0:00:08]} Kxd8 {[%emt 0:01:35]} 32. Kd4 {[%emt 0:01:41]} Kd7 {[%emt 0:02:55]} 33. a4 {[%emt 0:01:56]} Bd2 {[%emt 0:01:44]} 34. f4 {[%emt 0:03:23]} Be1 {[%emt 0:01:18]} 35. b5 {[%emt 0:01:30]} axb5 {[%emt 0:01:24]} 36. axb5 {[%emt 0:00:06]} f6 {[%emt 0:00:16]} 37. Nb4 {[%emt 0:01:28]} Bf2+ {[%emt 0:09:35]} 38. Kd5 {[%emt 0:00:37]} g5 {[%emt 0:02:29]} 39. c6+ {[%emt 0:01:31]} bxc6+ {[%emt 0:00:35]} 40. bxc6+ {[%emt 0:00:06]} Kc7 {[%emt 0:01:11]} 41. Na6+ {[%emt 0:30:25]} Kc8 {[%emt 0:30:50]} 42. c7 {[%emt 0:00:17]} Be3 {[%emt 0:00:47]} 43. fxg5 {[%emt 0:02:01]} fxg5 {[%emt 0:13:51]} 44. Ke5 {[%emt 0:02:59]} f4 {[%emt 0:00:00]} 45. Ke4 {[%emt 0:00:20]} h5 {[%emt 0:00:00]} 46. Nb4 {[%emt 0:00:47]} g4 {[%emt 0:00:00]} 47. Nd5 {[%emt 0:00:14]} g3 {[%emt 0:00:50]} 48. hxg3 {[%emt 0:00:38]} 1-0

[Event "Niedersachsen-ch A 2024"]
[Site "Verden Aller"]
[Date "2024.01.06"]
[Round "5.13"]
[White "Miljkovic, Jovana"]
[Black "Hoke, Joshua"]
[Result "1/2-1/2"]
[ECO "E06"]
[WhiteElo "2035"]
[BlackElo "1600"]
[Annotator "RC"]
[PlyCount "120"]
[EventDate "2024.01.01"]
[EventType "swiss"]
[EventCountry "GER"]
[SourceTitle "playchess.com"]
[Source "ChessBase"]
[SourceQuality "1"]
[TimeControl "40/5400+30:1800+30"]

1. Nf3 {[%emt 0:00:03]} Nf6 {[%emt 0:01:05]} 2. c4 {[%emt 0:00:07]} e6 {[%emt 0:00:32]} 3. g3 {[%emt 0:00:05]} d5 {[%emt 0:00:32]} 4. d4 {[%emt 0:00:07]} Be7 {[%emt 0:00:23]} 5. Bg2 {[%emt 0:00:09]} c6 {[%emt 0:00:24]} 6. Qc2 {[%emt 0:01:20]} O-O {[%emt 0:03:05]} 7. O-O {[%emt 0:00:12]} b6 {[%emt 0:01:02]} 8. cxd5 {[%emt 0:08:56]} exd5 {[%emt 0:08:08]} 9. Nc3 {[%emt 0:03:02]} Bb7 {[%emt 0:04:36]} 10. Bf4 {[%emt 0:00:52]} Na6 {[%emt 0:06:23]} 11. a3 {[%emt 0:05:43]} c5 {[%emt 0:04:55]} 12. Rfd1 {[%emt 0:03:29]} Nc7 {[%emt 0:21:30]} 13. dxc5 {[%emt 0:13:17]} bxc5 {[%emt 0:01:53]} 14. Qb3 {[%emt 0:04:40]} Qc8 {[%emt 0:05:07]} 15. Ng5 {[%emt 0:06:34]} c4 {[%emt 0:09:08]} 16. Qc2 {[%emt 0:02:07]} Ne6 {[%emt 0:02:28]} 17. Bh3 {[%emt 0:14:00]} g6 {[%emt 0:08:01]} 18. Nxe6 {[%emt 0:05:14]} fxe6 {[%emt 0:00:07]} 19. Nb5 {[%emt 0:02:13]} Nh5 {[%emt 0:08:12]} 20. Be3 {[%emt 0:01:51]} Ng7 {[%emt 0:02:09]} 21. Nxa7 {[%emt 0:06:01]} Qb8 {[%emt 0:04:50]} 22. Nb5 {[%emt 0:02:03]} e5 {[%emt 0:00:47]} 23. Bh6 {[%emt 0:02:25]} Bc5 {[%emt 0:01:31]} 24. e3 {[%emt 0:00:58]} Ba6 {[%emt 0:01:37]} 25. Nc3 {[%emt 0:04:24]} d4 {[%emt 0:00:16]} 26. exd4 {[%emt 0:02:09]} exd4 {[%emt 0:01:57]} 27. Ne4 {[%emt 0:00:58]} Bb6 {[%emt 0:00:44]} 28. Bxg7 {[%emt 0:01:48]} Kxg7 {[%emt 0:00:20]} 29. Re1 {[%emt 0:02:27]} Qd8 {[%emt 0:01:06]} 30. Qd2 {[%emt 0:00:52]} Ba5 {[%emt 0:00:42]} 31. Qc2 {[%emt 0:01:32]} Bxe1 {[%emt 0:00:34]} 32. Rxe1 {[%emt 0:00:01]} Qd5 {[%emt 0:01:04]} 33. Qd2 {[%emt 0:02:14]} Bb7 {[%emt 0:00:41]} 34. Qg5 {[%emt 0:00:51]} Rae8 {[%emt 0:00:38]} 35. Qxd5 {[%emt 0:01:22]} Bxd5 {[%emt 0:00:06]} 36. Bg2 {[%emt 0:00:22]} Bxe4 {[%emt 0:01:06]} 37. Bxe4 {[%emt 0:00:11]} Re7 {[%emt 0:00:13]} 38. Kf1 {[%emt 0:00:24]} Rfe8 {[%emt 0:00:34]} 39. f3 {[%emt 0:00:06]} Rb8 {[%emt 0:00:37]} 40. Re2 {[%emt 0:01:50]} d3 {[%emt 0:00:39]} 41. Bxd3 {[%emt 0:30:50]} Rxe2 {[%emt 0:30:33]} 42. Bxe2 {[%emt 0:00:03]} Rxb2 {[%emt 0:00:44]} 43. Bxc4 {[%emt 0:00:04]} Rxh2 {[%emt 0:00:00]} 44. a4 {[%emt 0:00:00]} Rc2 {[%emt 0:00:00]} 45. Bd5 {[%emt 0:00:00]} Rd2 {[%emt 0:00:00]} 46. Bc4 {[%emt 0:00:00]} Rd1+ {[%emt 0:00:00]} 47. Ke2 {[%emt 0:00:00]} Ra1 {[%emt 0:00:00]} 48. Bb5 {[%emt 0:00:00]} Ra3 {[%emt 0:00:00]} 49. g4 {[%emt 0:00:00]} h5 {[%emt 0:00:00]} 50. gxh5 {[%emt 0:00:00]} gxh5 {[%emt 0:00:00]} 51. Kf2 {[%emt 0:00:00]} Kf6 {[%emt 0:00:00]} 52. Kg3 {[%emt 0:00:00]} Kg5 {[%emt 0:00:00]} 53. Bc6 {[%emt 0:00:00]} Rc3 {[%emt 0:00:00]} 54. Bd5 {[%emt 0:00:00]} Rc5 {[%emt 0:00:00]} 55. Bb7 {[%emt 0:00:00]} Rc7 {[%emt 0:00:00]} 56. Bd5 {[%emt 0:00:00]} Ra7 {[%emt 0:00:00]} 57. Bc6 {[%emt 0:00:00]} Ra5 {[%emt 0:00:00]} 58. Bb5 {[%emt 0:00:00]} h4+ {[%emt 0:00:00]} 59. Kh3 {[%emt 0:00:00]} Ra7 {[%emt 0:00:00]} 60. Bc6 {[%emt 0:00:00]} Ra5 {[%emt 0:00:00]} 1/2-1/2